Cogmind - Beta 9.5 @@@ ROGUE MODE // 2020.04.13 @ 11:54:45 Player: Ape Result: Destroyed by Tracker with Linked Autogun Performance ------------- Evolutions (8) 4000 Regions Visited (26) 5200 Robots Destroyed (276) 1380 Value Destroyed (12476) 12476 Prototype IDs (73) 1460 Alien Tech Used (5) 1000 Bonus (10160) 10160 TOTAL SCORE: 35676 Bonus ------- Triggered Max Security 1000 High Alert Combat Kills 1022 Follower Combat Kills 499 Entered Garrisons 200 Used RIF Installer 500 Aligned with FarCom 300 Met Data Miner 300 Found Hidden Lab 3000 Used Core Reset Matrix 3000 Pursued by Intercept 1000 Friendly Fire -661 Cogmind --------- Core Integrity 0/1450 Matter 137/300 Energy 98/100 System Corruption 1% Temperature Cool (0) Movement Core (50) Location -2/Research Parts ------- > --- POWER (2) -------- (None) > --- PROPULSION (7) --- (None) > --- UTILITY (10) ----- Spectral Analyzer Advanced Signal Interpreter Advanced Target Analyzer Armor Integrity Analyzer > --- WEAPON (5) ------- (None) > --- INVENTORY (4) ---- Reinforced Quantum Reactor Remote Force Field Enhanced Force Lance Peak State ------------ > --- POWER ------------ Heavy Antimatter Reactor > --- PROPULSION ------- Enhanced Armored Medium Treads Enhanced Armored Medium Treads Enhanced Armored Medium Treads Enhanced Armored Medium Treads Centrium Heavy Treads > --- UTILITY ---------- Experimental Heat Sink Experimental Heat Sink Large Storage Unit Humpback Energy Well Spectral Analyzer Advanced Target Analyzer Heavy Regenerative Plating > --- WEAPON ----------- Enhanced Nova Cannon Enhanced Nova Cannon Enhanced Nova Cannon Linked Autogun > --- INVENTORY -------- Particle Reactor Enhanced Armored Medium Treads Enhanced Armored Medium Treads Enhanced Armored Medium Treads Advanced Heat Sink Advanced Heat Sink Improved Cooling System Humpback Matter Compressor Tactical Coordination Suite Advanced Target Analyzer Heavy Reflective Plating Heavy Insulated Plating Light Regenerative Plating Relay Coupler [NC] Transdimensional Reconstructor Hypervelocity EM Gauss Rifle Hypervelocity EM Gauss Rifle Gamma Rifle Gamma Rifle Gamma Rifle Gamma Rifle Gamma Rifle AWS/Thermal Fusion Bomb Launcher Guided Remote Datajack [Rating: 175] Favorites ----------- Power Heavy Antimatter Reactor Engine Heavy Ion Engine Power Core Light Nuclear Core Reactor Heavy Antimatter Reactor Propulsion Enhanced Armored Medium Treads Treads Enhanced Armored Medium Treads Leg Carbon-fiber Leg Hover Unit Antigrav System Flight Unit Cooled Impulse Thruster Utility Humpback Device Improved Cooling System Storage Humpback Processor Improved Targeting Computer Hackware System Shield Protection Medium Reactive Plating Weapon Improved Assault Rifle Energy Gun AWS/Thermal Energy Cannon Enhanced Nova Cannon Ballistic Gun Improved Assault Rifle Ballistic Cannon Mass Driver Launcher Missile Launcher Special Weapon Improved Plasma Cutter Piercing Weapon Enhanced Force Lance Build | -11 -10 -10 -9 -9 -9 -8 -8 -7 -7 -7 -7 -7 -7 -6 -6 -5 -5 -5 -5 -4 -4 -4 -4 -3 -3 -2 ------- Run | Scr Mat Min Mat Min Exi Min Mat Fac Gar Fac Low Low Dat Pro Fac Fac Upp Upp Zhi Pro Fac Arm Lab Res Tes Res Slots Evolved 16 | . . . 2 . . . 2 2 . . . . . . 2 2 . . . . 2 . . 2 . 2 Power 1 | . . . . . . . . . . . . . . . . . . . . . . . . . . 1 Propulsion 5 | . . . 1 . . . . 1 . . . . . . . . . . . . 2 . . . . 1 Utility 8 | . . . . . . . 2 . . . . . . . 2 2 . . . . . . . 2 . . Weapon 2 | . . . 1 . . . . 1 . . . . . . . . . . . . . . . . . . Parts Attached 332 | . 8 7 14 . 1 1 8 11 5 13 2 . 2 16 24 15 7 2 15 5 21 21 18 84 10 22 Power 23 | . 1 2 . . . 1 . 2 1 1 . . . 1 3 2 1 . 1 . . . . 5 . 2 Engine 10 | . 1 1 . . . . . 2 1 1 . . . . 3 1 . . . . . . . . . . Core 4 | . . 1 . . . 1 . . . . . . . . . 1 1 . . . . . . . . . Reactor 9 | . . . . . . . . . . . . . . 1 . . . . 1 . . . . 5 . 2 Propulsion 68 | . 2 3 6 . . . 3 6 . 3 2 . . 5 9 2 . . 4 . 3 8 1 4 4 3 Treads 19 | . . . . . . . . . . . . . . . . 2 . . 1 . 3 8 1 4 . . Leg 42 | . 2 3 6 . . . 3 6 . 3 2 . . 5 9 . . . 3 . . . . . . . Wheel . | . . . . . . . . . . . . . . . . . . . . . . . . . . . Hover 1 | . . . . . . . . . . . . . . . . . . . . . . . . . . 1 Flight 6 | . . . . . . . . . . . . . . . . . . . . . . . . . 4 2 Utility 136 | . 3 . 1 . 1 . 3 . 2 7 . . . 2 9 5 3 2 7 5 12 8 5 43 5 13 Device 59 | . . . . . . . 2 . 2 3 . . . . 3 3 . . 5 2 2 3 3 21 2 8 Storage 14 | . 2 . 1 . 1 . . . . 1 . . . . 1 . . . 1 . . 1 1 4 . 1 Processor 14 | . . . . . . . . . . . . . . . 2 . . . 1 . 1 . . 4 3 3 Hackware 6 | . . . . . . . . . . 1 . . . . 1 . . . . . 2 . . 1 . 1 Protection 43 | . 1 . . . . . 1 . . 2 . . . 2 2 2 3 2 . 3 7 4 1 13 . . Artifact . | . . . . . . . . . . . . . . . . . . . . . . . . . . . Weapon 105 | . 2 2 7 . . . 2 3 2 2 . . 2 8 3 6 3 . 3 . 6 5 12 32 1 4 Energy Gun 18 | . . 2 1 . . . . . . . . . . . . . 1 . . . . . 2 12 . . Energy Cannon 28 | . . . . . . . . . . . . . . 2 . . 1 . 2 . 2 2 5 14 . . Ballistic Gun 28 | . 1 . 5 . . . 1 3 2 2 . . 1 4 2 3 . . . . . . . 4 . . Ballistic Cannon 16 | . 1 . 1 . . . . . . . . . . . . . 1 . . . 4 3 4 2 . . Launcher 10 | . . . . . . . 1 . . . . . . 2 1 3 . . . . . . . . . 3 Special Weapon 3 | . . . . . . . . . . . . . 1 . . . . . 1 . . . 1 . . . Impact Weapon . | . . . . . . . . . . . . . . . . . . . . . . . . . . . Slashing Weapon . | . . . . . . . . . . . . . . . . . . . . . . . . . . . Piercing Weapon 2 | . . . . . . . . . . . . . . . . . . . . . . . . . 1 1 Special Melee Weapon . | . . . . . . . . . . . . . . . . . . . . . . . . . . . Unidentified Prototypes 20 | . . . 1 . . . . . . . . . . . . . . . 5 . . 2 4 6 2 . Parts Lost 76 | . . 3 . . . . . . 2 4 1 . . 11 8 . . . . 3 . 1 . 27 3 13 Power 8 | . . 1 . . . . . . . 1 . . . 1 2 . . . . . . . . 2 . 1 Propulsion 25 | . . 1 . . . . . . . 2 1 . . 5 1 . . . . . . . . 8 1 6 Utility 24 | . . . . . . . . . 1 . . . . 1 3 . . . . 3 . 1 . 8 2 5 Weapon 19 | . . 1 . . . . . . 1 1 . . . 4 2 . . . . . . . . 9 . 1 Highest Loss Streak 20 | . . 3 . . . . . . 2 4 1 . . 6 4 . . . . 1 . 1 . 20 2 9 Average Slot Usage (%) 87 | . 99 93 100 100 94 88 90 92 91 91 92 92 92 90 91 82 76 76 81 87 77 87 83 84 42 50 Engine 2 | . 14 8 . . . . . 3 7 6 7 7 7 5 3 1 . . . . . . . . . . Core 2 | . . 2 11 11 11 11 9 3 . . . . . . . 3 5 5 2 . . . . . . . Reactor 1 | . . . . . . . . . . . . . . . 1 . . . 2 5 5 5 5 3 . 3 Treads 7 | . . . . . . . . . . . . . . . . 10 11 11 8 5 14 28 30 24 . . Leg 18 | . 28 24 33 33 33 33 27 30 30 29 30 30 30 29 25 1 . . 7 17 . . . . . . Device 7 | . . . . . . . 9 7 6 7 7 7 7 7 11 11 11 11 11 9 8 7 5 11 7 11 Storage 9 | . 18 28 22 22 17 11 9 7 7 7 7 7 7 7 6 5 5 5 8 11 10 10 11 11 . . Processor 4 | . . . . . . . . . . . . . . . 9 11 11 11 11 6 7 7 5 7 19 18 Protection 5 | . 9 . . . . . 9 7 7 6 7 7 7 6 4 10 10 11 7 11 7 5 5 3 . . Energy Gun 1 | . 2 12 11 . . . . . . . . . . . . . 4 5 5 5 . . 4 5 . . Energy Cannon 2 | . . . . . . . . . . . . . . 1 . . 4 5 3 11 13 4 10 10 . . Ballistic Gun 16 | . 12 14 17 33 33 33 26 30 30 30 30 30 29 25 25 22 1 . . . . . . 1 . . Ballistic Cannon 2 | . 12 1 4 . . . . . . . . . . . . . 4 5 5 . 6 15 6 2 . . Naked Turns . | . . . . . . . . . . . . . . . . . . . . . . . . . . . Heaviest Build 272 | 10 41 41 46 46 94 96 111 114 114 124 123 123 123 126 138 137 150 150 165 178 185 176 272 210 9 41 Greatest Support 220 | 20 20 20 33 33 33 33 38 62 62 62 67 67 67 67 73 140 140 140 140 90 210 210 210 220 45 72 Greatest Overweight (x) 3 | . 2 3 1 1 2 2 3 2 1 2 2 1 1 2 2 1 1 1 2 1 2 . 1 . . . Average Overweight (x) . | . . 1 1 1 1 2 2 1 1 1 1 1 1 1 1 . . . 1 1 . . . . . . Largest Inventory Capacity 50 | . 16 16 16 16 24 24 24 24 24 24 24 24 24 24 24 24 24 24 30 30 30 50 50 30 4 4 Average Capacity 23 | . 8 16 16 16 19 24 24 24 24 24 24 24 24 24 24 24 24 24 27 30 30 30 36 29 4 4 Most Carried 37 | . 10 14 16 16 24 24 24 24 24 24 24 24 24 24 24 24 24 24 30 30 30 30 37 30 4 4 Average Carried 22 | . 6 10 15 16 18 24 23 23 23 22 23 23 24 22 22 23 23 24 26 29 29 29 30 28 4 3 Final Capacity 30 | 6 16 16 16 16 24 24 24 24 24 24 24 24 24 24 24 24 24 24 30 30 30 30 30 4 4 4 Final Carried 30 | 6 10 14 16 16 24 24 24 24 24 24 24 24 24 20 24 24 24 24 30 30 30 28 30 4 4 3 Class Distribution -------------------- 42% | Hauler-Skirmisher 17% | Hauler-Tank 13% | Hauler-Gunner 10% | Scavenger-Gunner 5% | Mutant 4% | Gunner Dominant Class ---------------- Mutant | -10/Materials Mutant | -10/Mines Scavenger-Gunner | -9/Materials Gunner | -9/Mines Gunner | -9/Exiles Hauler-Skirmisher | -8/Mines Hauler-Skirmisher | -8/Materials Hauler-Skirmisher | -7/Factory Hauler-Skirmisher | -7/Garrison Hauler-Skirmisher | -7/Factory Hauler-Tank | -7/Lower Caves Hauler-Tank | -7/Lower Caves Hauler-Tank | -7/Data Miner Hauler-Tank | -6/Proximity Caves Scavenger-Gunner | -6/Factory Hauler-Gunner | -5/Factory Hauler-Gunner | -5/Upper Caves Hauler-Gunner | -5/Upper Caves Hauler-Gunner | -5/Zhirov Hauler-Tank | -4/Proximity Caves Hauler-Tank | -4/Factory Hauler-Skirmisher | -4/Armory Hauler-Skirmisher | -4/Lab Hauler-Skirmisher | -3/Research Alien-Mutant | -3/Testing Alien-Sprinter | -2/Research Resources | -11 -10 -10 -9 -9 -9 -8 -8 -7 -7 -7 -7 -7 -7 -6 -6 -5 -5 -5 -5 -4 -4 -4 -4 -3 -3 -2 ----------- Run | Scr Mat Min Mat Min Exi Min Mat Fac Gar Fac Low Low Dat Pro Fac Fac Upp Upp Zhi Pro Fac Arm Lab Res Tes Res Matter Collected 10263 | 200 249 251 424 . 10 65 330 537 433 625 297 208 . 433 985 563 237 26 140 65 537 1109 163 2052 . 324 Remotely 163 | . . . . . . . . . . . . . . . . . . . . . . . . 163 . . Salvage Created 13117 | . 238 251 700 . . 61 508 696 565 787 338 418 . 306 1125 289 468 107 250 534 776 784 24 3550 . 342 Parts 631 | . 21 13 42 . . 7 32 44 24 37 16 18 . 25 48 15 26 7 16 24 25 38 . 143 . 10 Haulers Intercepted 7 | . 1 . 4 . . . . 1 . 1 . . . . . . . . . . . . . . . . Recyclers Shooed 5 | . . . . . . . . . . . . . . . 2 . . . . . 2 . . 1 . . Parts Field Recycled . | . . . . . . . . . . . . . . . . . . . . . . . . . . . Retrieved Matter . | . . . . . . . . . . . . . . . . . . . . . . . . . . . Parts Self-Destructed 134 | . . . . . . . . . . . 17 24 . 30 . . 26 7 7 23 . . . . . . Prevented . | . . . . . . . . . . . . . . . . . . . . . . . . . . . Kills | -11 -10 -10 -9 -9 -9 -8 -8 -7 -7 -7 -7 -7 -7 -6 -6 -5 -5 -5 -5 -4 -4 -4 -4 -3 -3 -2 ------- Run | Scr Mat Min Mat Min Exi Min Mat Fac Gar Fac Low Low Dat Pro Fac Fac Upp Upp Zhi Pro Fac Arm Lab Res Tes Res Combat Hostiles Destroyed 217 | . 9 6 11 . . 4 12 11 14 14 6 8 . 14 19 3 8 2 . 8 14 19 1 32 . 2 Guns 123 | . 2 4 7 . . 4 12 11 14 14 6 8 . 6 16 2 5 1 . 4 . . . 7 . . Cannons 78 | . 7 2 4 . . . . . . . . . . . . . 3 1 . 4 14 18 1 24 . . AOE 15 | . . . . . . . . . . . . . . 8 3 1 . . . . . 1 . . . 2 Classes Destroyed 16 | . 4 . 3 . . . 1 1 . 1 1 . . 1 2 . . . . 1 . 1 . . . . Worker 17 | . 1 . 1 . . . 1 4 . 1 . . . . 1 4 . . . . . . . 3 . 1 Builder 9 | . . . . . . . . . . . . . . . 3 1 . . . . . . . 3 . 2 Tunneler 1 | . . . . . . . . . . . . . . . 1 . . . . . . . . . . . Hauler 7 | . 1 . 4 . . . . 1 . 1 . . . . . . . . . . . . . . . . Recycler 17 | . . . 1 . . . . 2 . . . . . . 1 . . . . . 2 . . 9 . 2 Operator 1 | . . . 1 . . . . . . . . . . . . . . . . . . . . . . . Watcher 3 | . . . . . . . . . . . . . . . . . . . . . . 2 . . . 1 Swarmer 51 | . 5 . 2 . . 4 3 3 6 2 2 2 . 10 3 1 . . . . 4 4 . . . . Grunt 80 | . 4 6 7 . . . 4 2 8 9 1 3 . 2 11 1 4 . . 5 3 6 . 4 . . Brawler 2 | . . . . . . . . . . . . . . . . . . . . 1 . 1 . . . . Duelist 5 | . . . . . . . . . . 1 . 1 . . 2 . 1 . . . . . . . . . Sentry 23 | . . . 2 . . . 4 3 . 1 1 1 . . 1 1 1 . . . 3 2 . 3 . . Hunter 11 | . . . . . . . 1 1 . . 1 1 . . 1 . . . . 2 . 2 . 2 . . Programmer 29 | . . . . . . . . 2 . 1 . . . 1 1 . 2 2 . . 4 4 . 12 . . Behemoth 1 | . . . . . . . . . . . . . . 1 . . . . . . . . . . . . Tracker 9 | . . . . . . . . . . . . . . . . . . . . . . . . 7 . 2 Combat Programmer 4 | . . . . . . . . . . . . . . . . . . . . . . . . 4 . . Thug 3 | . . . . . . . . . . . 1 . . . . 1 . . . . 1 . . . . . Butcher 1 | . . . . . . . . . . . . 1 . . . . . . . . . . . . . . Mutant 1 | . . . . . . . . . . . 1 . . . . . . . . . . . . . . . Best Kill Streak 8 | . 5 4 5 . . 4 4 8 6 3 2 4 . 4 7 4 4 2 . 4 6 7 1 5 . 7 Combat Bots Only 6 | . 5 4 3 . . 4 4 3 6 3 2 4 . 4 5 1 4 2 . 4 5 6 1 5 . 2 Max Kills in Single Turn 3 | . 1 1 2 . . 2 1 2 2 2 2 2 . 3 2 2 1 1 . 1 1 2 1 2 . 3 Gunslinging 1 | . . . . . . 1 . . . 1 . . . . . . . . . . . . . . . . Exploded 3 | . . . . . . . . . . . . . . 3 2 1 . . . . . 1 . . . 1 Melee . | . . . . . . . . . . . . . . . . . . . . . . . . . . . Uniques/NPCs Destroyed 1 | . . . . . . . . . . . . . . . . . . . . . . . 1 . . . A5 (-4/Lab) Combat | -11 -10 -10 -9 -9 -9 -8 -8 -7 -7 -7 -7 -7 -7 -6 -6 -5 -5 -5 -5 -4 -4 -4 -4 -3 -3 -2 -------- Run | Scr Mat Min Mat Min Exi Min Mat Fac Gar Fac Low Low Dat Pro Fac Fac Upp Upp Zhi Pro Fac Arm Lab Res Tes Res Damage Taken 22171 | . 379 454 241 . . 106 479 367 574 986 203 237 . 1568 1331 127 511 36 . 689 706 1352 178 9270 264 2113 Core 2981 | . 42 83 48 . . . 61 19 22 104 36 28 . 59 98 11 40 . . . 20 23 . 853 59 1375 Absorbed by Shields 128 | . . . . . . . . . 128 . . . . . . . . . . . . . . . . . Reduced by Siege Mode 94 | . . . . . . . . . . . . . . . . 5 16 . . . 62 11 . . . . Core Remaining (%) 76 | 100 . 50 . . . 88 88 . . . . . . 61 88 . . . . 94 . . 87 . 29 . Volleys Fired 619 | . 49 21 30 . . 5 32 31 29 31 17 16 1 27 56 18 11 1 15 19 31 38 19 113 . 9 Largest 5 | . 2 2 3 . . 3 3 4 4 4 4 4 1 4 4 4 2 2 1 2 4 4 4 5 . 1 Hottest 480 | . 85 70 135 . . 69 69 97 97 97 97 97 30 204 104 104 138 138 20 180 338 291 360 480 . 52 Shots Fired 1918 | . 98 42 90 . . 15 92 123 110 123 67 64 1 72 210 48 41 8 15 52 103 127 66 342 . 9 Gun 1225 | . 56 35 75 . . 15 90 123 110 123 67 64 . 53 207 41 22 6 . 16 . . 23 99 . . Cannon 648 | . 42 7 15 . . . . . . . . . . 11 . . 19 2 . 36 103 127 43 243 . . Launcher 29 | . . . . . . . 2 . . . . . . 8 3 7 . . . . . . . . . 9 Special 16 | . . . . . . . . . . . . . 1 . . . . . 15 . . . . . . . Kinetic 1352 | . 81 28 64 . . 15 90 123 110 123 67 64 . 53 207 41 11 1 . . 49 111 13 101 . . Thermal 506 | . 17 14 26 . . . . . . . . . . 11 . . 30 7 15 52 54 16 53 211 . . Explosive 29 | . . . . . . . 2 . . . . . . 8 3 7 . . . . . . . . . 9 Electromagnetic 30 | . . . . . . . . . . . . . . . . . . . . . . . . 30 . . Robot Hit Streak 35 | . 8 6 7 . . 2 13 15 16 30 10 10 4 32 33 13 18 15 25 12 20 16 15 35 . 8 Robot Miss Streak 5 | . 5 3 3 . . 4 2 4 4 2 5 2 . 4 2 1 1 . 1 2 1 2 3 4 . 2 Penetration Max 2 | . . . . . . . . . . . . . . . 1 1 . . . . 1 1 . 2 . . Secondary Targets 18 | . . 1 1 . . 2 . . 7 2 1 1 . 1 2 . . . . . . . . . . . Max Gunslinging Chain 2 | . . 1 1 . . 2 . . 1 1 1 1 . 1 1 . . . . . . . . . . . Autonomous 77 | . . . . . . . . . . . . . . . . . 22 6 . 16 . . 23 10 . . Shots Hit Robots 1261 | . 54 24 50 . . 5 63 84 69 85 37 37 1 54 162 31 37 7 14 40 65 79 40 216 . 7 Core Hits 555 | . 17 15 24 . . 4 25 36 30 35 19 17 . 32 62 16 15 3 6 16 26 37 11 94 . 15 Critical Hits 41 | . . . . . . . . . 1 2 . . . 2 5 . . . 6 2 2 2 . 18 . 1 Critical Kills 9 | . . . . . . . . . . . . . . . 2 . . . 1 1 1 . . 4 . . Critical Parts Destroyed 25 | . . . . . . . . . 1 2 . . . 2 3 . . . 5 1 . 1 . 9 . 1 Melee Attacks 63 | . . . . . . . . . . . . . . . . . . . . . . . . . 22 41 Impact . | . . . . . . . . . . . . . . . . . . . . . . . . . . . Slashing . | . . . . . . . . . . . . . . . . . . . . . . . . . . . Piercing 63 | . . . . . . . . . . . . . . . . . . . . . . . . . 22 41 Sneak Attacks 1 | . . . . . . . . . . . . . . . . . . . . . . . . . . 1 Combat Hostiles . | . . . . . . . . . . . . . . . . . . . . . . . . . . . Follow-up Attacks . | . . . . . . . . . . . . . . . . . . . . . . . . . . . Damage Inflicted 33549 | . 672 301 782 . . 104 1012 1907 1066 1396 598 647 . 2187 3128 1025 1113 257 195 1358 2493 2602 993 8563 . 1150 Guns 14526 | . 239 217 570 . . 104 978 1256 1066 1396 598 647 . 597 2530 602 618 212 . 434 . . 455 2007 . . Cannons 14457 | . 433 84 212 . . . . . . . . . . 332 . . 495 45 . 924 2483 2422 538 6489 . . Explosions 4168 | . . . . . . . 34 651 . . . . . 1258 598 423 . . . . 10 180 . 67 . 947 Melee 203 | . . . . . . . . . . . . . . . . . . . . . . . . . . 203 Ramming . | . . . . . . . . . . . . . . . . . . . . . . . . . . . Kinetic 16506 | . 533 178 577 . . 104 978 1256 1066 1396 598 647 . 597 2530 602 264 . . . 974 1894 164 2148 . . Thermal 12538 | . 139 123 205 . . . . . . . . . . 332 . 40 849 257 195 1358 1519 528 829 6164 . . Explosive 3768 | . . . . . . . 34 651 . . . . . 1258 495 383 . . . . . . . . . 947 Electromagnetic 534 | . . . . . . . . . . . . . . . 103 . . . . . . 180 . 251 . . Impact . | . . . . . . . . . . . . . . . . . . . . . . . . . . . Slashing . | . . . . . . . . . . . . . . . . . . . . . . . . . . . Piercing 203 | . . . . . . . . . . . . . . . . . . . . . . . . . . 203 Highest Corruption 70 | . 1 1 . . . . . 3 3 3 3 3 3 13 1 . 2 2 2 2 2 4 4 65 70 1 Average Corruption 4 | . 1 1 . . . . . 2 3 3 3 3 3 4 1 . 1 2 2 2 1 2 1 7 68 1 Corruption Purged . | . . . . . . . . . . . . . . . . . . . . . . . . . . . Effects 283 | . 2 2 . . . . . 17 23 29 22 11 3 16 5 . 4 2 2 6 4 12 1 65 57 . Message Errors 44 | . . 1 . . . . . 3 3 2 3 4 . 5 2 . 2 . 1 2 1 4 1 6 4 . Matter Fused 38 | . . . . . . . . 1 8 7 7 . 1 3 . . . . . . . 1 . 8 2 . Heat Flow Errors 29 | . . . . . . . . 1 4 2 1 1 . 1 . . . 1 . 4 . 3 . 7 4 . Energy Discharges 32 | . 1 1 . . . . . 7 1 4 2 2 2 1 1 . . . . . 2 2 . 4 2 . Parts Rejected 1 | . . . . . . . . . . . . . . . . . . . . . . . . 1 . . Data Loss (minor) 21 | . 1 . . . . . . 3 . 3 5 1 . . . . 2 1 . . . 2 . 3 . . Data Loss (major) 3 | . . . . . . . . . . . . . . . . . . . . . . . . 1 2 . Misfires 1 | . . . . . . . . . . . . . . . . . . . . . . . . 1 . . Misdirections 27 | . . . . . . . . . . . . . . 1 . . . . . . . . . 2 24 . Targeting Errors 73 | . . . . . . . . 1 4 11 3 3 . 5 2 . . . 1 . . . . 24 19 . Weapon Failures 14 | . . . . . . . . 1 3 . 1 . . . . . . . . . 1 . . 8 . . Overload Shots . | . . . . . . . . . . . . . . . . . . . . . . . . . . . Overflow Damage 634 | . 2 . . . . . . 14 . . . . . 91 10 10 36 . 2 . 102 83 . 256 . 28 Projectiles 428 | . 2 . . . . . . . . . . . . . . . 36 . 2 . 102 30 . 256 . . Explosions 206 | . . . . . . . . 14 . . . . . 91 10 10 . . . . . 53 . . . 28 Melee . | . . . . . . . . . . . . . . . . . . . . . . . . . . . Knockbacks 33 | . 9 1 1 . . . . . . . . . . . . . 2 . . . 7 6 1 6 . . Impact . | . . . . . . . . . . . . . . . . . . . . . . . . . . . Kinetic 32 | . 8 1 1 . . . . . . . . . . . . . 2 . . . 7 6 1 6 . . Secondary 1 | . 1 . . . . . . . . . . . . . . . . . . . . . . . . . Self-Inflicted Damage 299 | . . . . . . . . . . . . . . 3 178 . . . . . . . . . . 118 Shots 8 | . . . . . . . . . . . . . . 1 5 . . . . . . . . . . 2 Rammed . | . . . . . . . . . . . . . . . . . . . . . . . . . . . Targets Rammed . | . . . . . . . . . . . . . . . . . . . . . . . . . . . Kicked . | . . . . . . . . . . . . . . . . . . . . . . . . . . . Crushed . | . . . . . . . . . . . . . . . . . . . . . . . . . . . Highest Temperature 555 | . 309 132 306 . . 24 3 149 259 154 144 192 . 207 240 . 102 110 . 240 497 283 263 555 105 . Average Temperature 101 | . 63 61 98 . . 10 3 89 72 84 72 95 . 109 47 . 33 40 . 75 122 109 82 166 65 . Received Heat Transfer 2322 | . 123 261 84 . . . 207 42 129 252 18 27 . 234 396 9 102 . . 81 120 69 . 132 18 18 Effects 17 | . . . . . . . . . . . . . . . 2 . . . . . 1 1 . 13 . . Shutdowns 2 | . . . . . . . . . . . . . . . . . . . . . 1 . . 1 . . Energy Bleed 1 | . . . . . . . . . . . . . . . . . . . . . . 1 . . . . Interference 14 | . . . . . . . . . . . . . . . 2 . . . . . . . . 12 . . Siege Activations 10 | . . . . . . . . . . . . . . . . 2 3 . . . 4 1 . . . . Total Turns 111 | . . . . . . . . . . . . . . . . 15 19 . . . 69 8 . . . . Longest Duration 40 | . . . . . . . . . . . . . . . . 8 9 . . . 40 8 . . . . Robots Corrupted 2 | . . . . . . . . . . . . . . . . . . . . . . 1 . 1 . . Combat Hostiles 1 | . . . . . . . . . . . . . . . . . . . . . . . . 1 . . Parts Fried 6 | . . . . . . . . . . . . . . . . . . . . . . 2 . 4 . . Impact Corruptions . | . . . . . . . . . . . . . . . . . . . . . . . . . . . Robots Melted . | . . . . . . . . . . . . . . . . . . . . . . . . . . . Combat Hostiles . | . . . . . . . . . . . . . . . . . . . . . . . . . . . Parts Melted 16 | . 1 . 1 . . . . . . . . . . 1 . . 1 . . . 1 . . 11 . . Heat Transferred 12066 | . 407 370 518 . . . . . . . . . . 347 . 50 927 247 555 1188 1083 432 1019 4923 . . Parts Sabotaged . | . . . . . . . . . . . . . . . . . . . . . . . . . . . Parts Stolen . | . . . . . . . . . . . . . . . . . . . . . . . . . . . Parts Stripped . | . . . . . . . . . . . . . . . . . . . . . . . . . . . Power Chain Reactions 3 | . . . . . . . . . . . . . . . 1 . . . . . . . . 2 . . Missiles Intercepted . | . . . . . . . . . . . . . . . . . . . . . . . . . . . Alert | -11 -10 -10 -9 -9 -9 -8 -8 -7 -7 -7 -7 -7 -7 -6 -6 -5 -5 -5 -5 -4 -4 -4 -4 -3 -3 -2 ------- Run | Scr Mat Min Mat Min Exi Min Mat Fac Gar Fac Low Low Dat Pro Fac Fac Upp Upp Zhi Pro Fac Arm Lab Res Tes Res Peak Influence 1642 | . 229 135 224 87 . 105 273 374 629 371 . . . . 582 358 . . . . 391 897 . 736 1642 1351 Average Influence 292 | . 69 84 108 87 . 59 96 227 451 250 . . . . 423 261 . . . . 118 455 . 306 1616 1126 Maximum Alert Level 5 | . 1 . 1 . . . 1 1 2 1 . . . . 2 1 . . . . 1 3 . 3 5 4 Low Security (%) 43 | . 92 100 84 100 . 100 83 30 7 27 . . . . . 23 . . . . 71 10 . 32 . . Level 1 34 | . 7 . 15 . . . 16 69 39 72 . . . . 28 76 . . . . 28 51 . 27 . . Level 2 14 | . . . . . . . . . 52 . . . . . 71 . . . . . . 7 . 38 . . Level 3 3 | . . . . . . . . . . . . . . . . . . . . . . 30 . 1 . 27 Level 4 2 | . . . . . . . . . . . . . . . . . . . . . . . . . . 72 Level 5 . | . . . . . . . . . . . . . . . . . . . . . . . . . . . High Security . | . . . . . . . . . . . . . . . . . . . . . . . . . . . Max Security 1 | . . . . . . . . . . . . . . . . . . . . . . . . . 99 . Squads Dispatched 63 | . . . 2 . . . 2 4 . 4 . 1 . . 6 2 . . . . 1 4 . 16 12 9 Investigation 9 | . . . 1 . . . 1 1 . . . . . . 3 . . . . . . 2 . 1 . . Extermination 13 | . . . . . . . . 2 . 1 . . . . 1 1 . . . . 1 2 . 5 . . Reinforcement 6 | . . . 1 . . . 1 1 . . . . . . 1 1 . . . . . . . . . 1 Assault 15 | . . . . . . . . . . . . 1 . . 1 . . . . . . . . . 12 1 Garrison 3 | . . . . . . . . . . 3 . . . . . . . . . . . . . . . . Intercept 17 | . . . . . . . . . . . . . . . . . . . . . . . . 10 . 7 Construction Impeded 4 | . . . . . . . . 1 . . . . . . 1 1 . . . . . . . . . 1 Haulers Reinforced . | . . . . . . . . . . . . . . . . . . . . . . . . . . . Stealth | -11 -10 -10 -9 -9 -9 -8 -8 -7 -7 -7 -7 -7 -7 -6 -6 -5 -5 -5 -5 -4 -4 -4 -4 -3 -3 -2 --------- Run | Scr Mat Min Mat Min Exi Min Mat Fac Gar Fac Low Low Dat Pro Fac Fac Upp Upp Zhi Pro Fac Arm Lab Res Tes Res Distress Signals 14 | . . . 3 . . . 1 1 . 1 . . . . 2 . . . . . 2 1 . 2 . 1 Communications Jammed . | . . . . . . . . . . . . . . . . . . . . . . . . . . . Distress Signals . | . . . . . . . . . . . . . . . . . . . . . . . . . . . Times Spotted 330 | . 24 6 13 . . 4 19 12 15 21 6 12 . 20 25 6 9 2 . 9 18 23 1 52 13 20 Peak Tracking Total 17 | . 5 4 3 . . 4 5 4 6 4 2 6 . 6 5 4 3 2 . 4 6 5 1 8 17 14 Tactical Retreats 24 | . 4 . 1 . . . 1 1 4 . . 1 . . 1 1 1 . . 1 2 1 . 3 1 1 Traps | -11 -10 -10 -9 -9 -9 -8 -8 -7 -7 -7 -7 -7 -7 -6 -6 -5 -5 -5 -5 -4 -4 -4 -4 -3 -3 -2 ------- Run | Scr Mat Min Mat Min Exi Min Mat Fac Gar Fac Low Low Dat Pro Fac Fac Upp Upp Zhi Pro Fac Arm Lab Res Tes Res Traps Triggered 18 | . 1 . . . . . . 3 8 2 . . . . 1 . . . . . 1 1 . . 1 . Indirectly . | . . . . . . . . . . . . . . . . . . . . . . . . . . . Trap Hack Attempts . | . . . . . . . . . . . . . . . . . . . . . . . . . . . Triggered . | . . . . . . . . . . . . . . . . . . . . . . . . . . . Disarmed . | . . . . . . . . . . . . . . . . . . . . . . . . . . . Reprogrammed 4 | . 4 . . . . . . . . . . . . . . . . . . . . . . . . . Reused 1 | . . . . . . . . . . . . . . . . . . . . . . 1 . . . . Traps Extracted . | . . . . . . . . . . . . . . . . . . . . . . . . . . . Installed 2 | . . . . . . . . . . . . . . . . . . . . . 1 1 . . . . Triggered 4 | . . . . . . . . . . . 2 . . . . . . . . 1 . 1 . . . . Machines | -11 -10 -10 -9 -9 -9 -8 -8 -7 -7 -7 -7 -7 -7 -6 -6 -5 -5 -5 -5 -4 -4 -4 -4 -3 -3 -2 ---------- Run | Scr Mat Min Mat Min Exi Min Mat Fac Gar Fac Low Low Dat Pro Fac Fac Upp Upp Zhi Pro Fac Arm Lab Res Tes Res Machines Disabled 39 | . . 1 1 . . . . 12 1 . 1 . . . 9 2 . . . . 3 . 4 3 . 2 Max in Single Turn 6 | . . 1 1 . . . . 5 1 . 1 . . . 6 2 . . . . 1 . 2 1 . 1 Garrison Access 1 | . . . . . . . . . . . . . . . . 1 . . . . . . . . . . Garrison Relay 1 | . . . . . . . . . 1 . . . . . . . . . . . . . . . . . Machines Sabotaged . | . . . . . . . . . . . . . . . . . . . . . . . . . . . Garrisons Compromised . | . . . . . . . . . . . . . . . . . . . . . . . . . . . Overloaded Fab Kills . | . . . . . . . . . . . . . . . . . . . . . . . . . . . Fab Network Shutdowns 1 | . . . . . . . . . . . . . . . . . . . . . . 1 . . . . Hacking | -11 -10 -10 -9 -9 -9 -8 -8 -7 -7 -7 -7 -7 -7 -6 -6 -5 -5 -5 -5 -4 -4 -4 -4 -3 -3 -2 --------- Run | Scr Mat Min Mat Min Exi Min Mat Fac Gar Fac Low Low Dat Pro Fac Fac Upp Upp Zhi Pro Fac Arm Lab Res Tes Res Machines Accessed 79 | . 6 . 7 . 1 . 8 8 . 7 . . 4 . 7 3 . . 9 . 7 6 2 2 . 2 Terminals 43 | . 6 . 6 . . . 7 3 . 5 . . . . 5 1 . . . . 4 3 . 2 . 1 Fabricators 7 | . . . . . . . . 2 . 2 . . . . . . . . . . 1 2 . . . . Repair Stations . | . . . . . . . . . . . . . . . . . . . . . . . . . . . Recycling Units 7 | . . . 1 . . . . 1 . . . . . . 1 . . . . . 2 1 . . . 1 Scanalyzers 4 | . . . . . . . 1 1 . . . . . . 1 1 . . . . . . . . . . Garrison Access 2 | . . . . . . . . 1 . . . . . . . 1 . . . . . . . . . . Total Hacks 254 | . 21 . 15 . 1 . 30 13 . 16 . . 27 . 17 6 . . 48 . 16 18 19 3 . 4 Successful 186 | . 8 . 11 . 1 . 21 7 . 7 . . 27 . 9 5 . . 48 . 9 12 19 . . 2 Failed 67 | . 13 . 4 . . . 8 6 . 9 . . . . 8 1 . . . . 7 6 . 3 . 2 Catastrophic 9 | . . . 1 . . . . . . 3 . . . . 1 . . . . . 1 . . 2 . 1 Database Lockouts 1 | . . . . . . . 1 . . . . . . . . . . . . . . . . . . . Manual 74 | . 6 . 2 . 1 . 18 9 . 8 . . . . 9 . . . . . 7 7 2 3 . 2 Terminals 122 | . 21 . 14 . . . 28 4 . 13 . . . . 15 3 . . . . 10 9 . 3 . 2 Fabricators 18 | . . . . . . . . 6 . 3 . . . . . . . . . . 3 6 . . . . Repair Stations . | . . . . . . . . . . . . . . . . . . . . . . . . . . . Recycling Units 11 | . . . 1 . . . . 1 . . . . . . 1 . . . . . 3 3 . . . 2 Scanalyzers 6 | . . . . . . . 2 1 . . . . . . 1 2 . . . . . . . . . . Garrison Access 2 | . . . . . . . . 1 . . . . . . . 1 . . . . . . . . . . Terminal Hacks 143 | . 6 . 10 . 1 . 14 . . 4 . . 27 . 5 2 . . 48 . 4 2 19 . . 1 Record 69 | . 1 . . . . . 1 . . . . . 11 . 1 . . . 36 . . . 19 . . . Part Schematic 11 | . . . . . . . . . . . . . 7 . . . . . 4 . . . . . . . Robot Schematic 6 | . . . . . . . . . . . . . 6 . . . . . . . . . . . . . Robot Analysis 9 | . . . . . . . 2 . . 1 . . . . 1 . . . 4 . 1 . . . . . Prototype ID Bank 14 | . 2 . 4 . . . 1 . . . . . 3 . . . . . 4 . . . . . . . Branch Access Points 1 | . . . . . . . . . . 1 . . . . . . . . . . . . . . . . Emergency Access Points 2 | . . . . . . . . . . . . . . . . . . . . . 1 1 . . . . Terminal Index 4 | . . . 1 . . . 1 . . . . . . . 1 1 . . . . . . . . . . Fabricator Index 1 | . . . . . . . . . . . . . . . . . . . . . 1 . . . . . Garrison Index 1 | . . . . . . . 1 . . . . . . . . . . . . . . . . . . . Alert Level 2 | . 1 . . . . . 1 . . . . . . . . . . . . . . . . . . . Unreport Threat 3 | . . . 1 . . . . . . 1 . . . . . . . . . . . . . . . 1 Locate Traps 11 | . 1 . 2 . . . 2 . . 1 . . . . 2 1 . . . . 1 1 . . . . Reprogram Traps 1 | . 1 . . . . . . . . . . . . . . . . . . . . . . . . . Recall Investigation 1 | . . . . . . . 1 . . . . . . . . . . . . . . . . . . . Hauler Manifests 3 | . . . 2 . . . 1 . . . . . . . . . . . . . . . . . . . Registered Components 1 | . . . . . . . 1 . . . . . . . . . . . . . . . . . . . Registered Prototypes 1 | . . . . . . . 1 . . . . . . . . . . . . . . . . . . . Zone Layout 1 | . . . . . . . 1 . . . . . . . . . . . . . . . . . . . EX-Prototype ID Bank 1 | . . . . . 1 . . . . . . . . . . . . . . . . . . . . . Fabricator Hacks 10 | . . . . . . . . 1 . 1 . . . . . . . . . . 3 5 . . . . Load Schematic 3 | . . . . . . . . . . . . . . . . . . . . . 1 2 . . . . Build 7 | . . . . . . . . 1 . 1 . . . . . . . . . . 2 3 . . . . Repair Station Hacks . | . . . . . . . . . . . . . . . . . . . . . . . . . . . Recycling Unit Hacks . | . . . . . . . . . . . . . . . . . . . . . . . . . . . Scanalyzer 6 | . . . . . . . 2 1 . . . . . . 1 2 . . . . . . . . . . Insert Component 4 | . . . . . . . 1 1 . . . . . . 1 1 . . . . . . . . . . Analyze 2 | . . . . . . . 1 . . . . . . . . 1 . . . . . . . . . . Garrison Access Hacks 2 | . . . . . . . . 1 . . . . . . . 1 . . . . . . . . . . Unlock Access 1 | . . . . . . . . 1 . . . . . . . . . . . . . . . . . . Seal Access 1 | . . . . . . . . . . . . . . . . 1 . . . . . . . . . . Unauthorized Hacks 71 | . 8 . 2 . . . 13 13 . 6 . . . . 6 . . . . . 7 12 . 1 . 3 Terminals 15 | . 2 . . . . . 5 1 . 2 . . . . 2 . . . . . 1 2 . . . . Track 1 | . 1 . . . . . . . . . . . . . . . . . . . . . . . . . Assimilate 1 | . . . . . . . 1 . . . . . . . . . . . . . . . . . . . Botnet 13 | . 1 . . . . . 4 1 . 2 . . . . 2 . . . . . 1 2 . . . . Fabricators 2 | . . . . . . . . 2 . . . . . . . . . . . . . . . . . . Report 1 | . . . . . . . . 1 . . . . . . . . . . . . . . . . . . Prioritize 1 | . . . . . . . . 1 . . . . . . . . . . . . . . . . . . Repair Stations . | . . . . . . . . . . . . . . . . . . . . . . . . . . . Recycling Units 8 | . . . 1 . . . . 1 . . . . . . 1 . . . . . 1 3 . . . 1 Monitor 1 | . . . . . . . . . . . . . . . . . . . . . . 1 . . . . Reject 1 | . . . . . . . . . . . . . . . . . . . . . . 1 . . . . Recyclers 3 | . . . . . . . . . . . . . . . . . . . . . 1 1 . . . 1 Tunnel 3 | . . . 1 . . . . 1 . . . . . . 1 . . . . . . . . . . . Scanalyzers . | . . . . . . . . . . . . . . . . . . . . . . . . . . . Garrison Access . | . . . . . . . . . . . . . . . . . . . . . . . . . . . Data Cores Recovered . | . . . . . . . . . . . . . . . . . . . . . . . . . . . Used . | . . . . . . . . . . . . . . . . . . . . . . . . . . . Hacking Detections 52 | . 6 . 6 . . . 7 4 . 7 . . . . 5 1 . . . . 7 5 . 2 . 2 Full Trace Events 3 | . . . . . . . . . . . . . . . 1 . . . . . . 1 . 1 . . Feedback Events 1 | . . . . . . . . . . . . . . . . . . . . . . 1 . . . . Corruption 1 | . . . . . . . . . . . . . . . . . . . . . . 1 . . . . Feedback Blocked . | . . . . . . . . . . . . . . . . . . . . . . . . . . . Robot Schematics Acquired 6 | . . . . . . . . . . . . . 6 . . . . . . . . . . . . . Robots Built 1 | . . . . . . . . 1 . . . . . . . . . . . . . . . . . . Matter 153 | . . . . . . . . 153 . . . . . . . . . . . . . . . . . . Time 81 | . . . . . . . . 81 . . . . . . . . . . . . . . . . . . Total Robot Build Rating 1 | . . . . . . . . 1 . . . . . . . . . . . . . . . . . . Part Schematics Acquired 13 | . . . . . . . 1 . . . . . 7 . . 1 . . 4 . . . . . . . Parts Built 7 | . . . . . . . . . . 2 . . . . . . . . . . 2 3 . . . . Matter 1081 | . . . . . . . . . . 212 . . . . . . . . . . 204 665 . . . . Time 299 | . . . . . . . . . . 35 . . . . . . . . . . 50 214 . . . . Total Part Build Rating 29 | . . . . . . . . . . 12 . . . . . . . . . . 2 15 . . . . Parts Repaired . | . . . . . . . . . . . . . . . . . . . . . . . . . . . Time . | . . . . . . . . . . . . . . . . . . . . . . . . . . . Parts Recycled . | . . . . . . . . . . . . . . . . . . . . . . . . . . . Recycled Matter . | . . . . . . . . . . . . . . . . . . . . . . . . . . . Retrieved Matter . | . . . . . . . . . . . . . . . . . . . . . . . . . . . Retrieved Components . | . . . . . . . . . . . . . . . . . . . . . . . . . . . Parts Scanalyzed 2 | . . . . . . . 1 . . . . . . . . 1 . . . . . . . . . . Part Schematics Acquired 2 | . . . . . . . 1 . . . . . . . . 1 . . . . . . . . . . Parts Damaged . | . . . . . . . . . . . . . . . . . . . . . . . . . . . Bothacking | -11 -10 -10 -9 -9 -9 -8 -8 -7 -7 -7 -7 -7 -7 -6 -6 -5 -5 -5 -5 -4 -4 -4 -4 -3 -3 -2 ------------ Run | Scr Mat Min Mat Min Exi Min Mat Fac Gar Fac Low Low Dat Pro Fac Fac Upp Upp Zhi Pro Fac Arm Lab Res Tes Res Used RIF Installer 1 | . . . . . . . . . 1 . . . . . . . . . . . . . . . . . Robots Hacked 1 | . . . . . . . . . . . . . 1 . . . . . . . . . . . . . Non-combat . | . . . . . . . . . . . . . . . . . . . . . . . . . . . Combat 1 | . . . . . . . . . . . . . 1 . . . . . . . . . . . . . Robot Hacks Applied 1 | . . . . . . . . . . . . . 1 . . . . . . . . . . . . . parse_system 1 | . . . . . . . . . . . . . 1 . . . . . . . . . . . . . Relay Couplers Released 3 | . . . . . . . . . 3 . . . . . . . . . . . . . . . . . Machine Destruction 3 | . . . . . . . . . 3 . . . . . . . . . . . . . . . . . Robots Rewired 7 | . . . . . . . . 1 . . 3 1 . . . 2 . . . . . . . . . . Allies Hacked . | . . . . . . . . . . . . . . . . . . . . . . . . . . . Hacks Repelled . | . . . . . . . . . . . . . . . . . . . . . . . . . . . Allies | -11 -10 -10 -9 -9 -9 -8 -8 -7 -7 -7 -7 -7 -7 -6 -6 -5 -5 -5 -5 -4 -4 -4 -4 -3 -3 -2 -------- Run | Scr Mat Min Mat Min Exi Min Mat Fac Gar Fac Low Low Dat Pro Fac Fac Upp Upp Zhi Pro Fac Arm Lab Res Tes Res Total Allies 22 | . . . . . . . 1 2 . . 3 1 . 1 3 2 . . . . 3 . . . . 6 Largest Group 6 | . . . . . . . 1 1 . . 3 3 3 4 3 3 . . . . 3 . . . . 6 Highest-Rated Group 157 | . . . . . . . 10 16 . . 75 75 63 157 93 93 . . . . 138 . . . . 85 Highest-Rated Ally 94 | . . . . . . . 10 16 . . 25 25 25 94 31 31 . . . . 46 . . . . 15 Total Orders 21 | . . . . . . . 9 6 . . . . . . 3 3 . . . . . . . . . . STAY 1 | . . . . . . . . 1 . . . . . . . . . . . . . . . . . . GOTO 9 | . . . . . . . 6 1 . . . . . . 1 1 . . . . . . . . . . FOLLOW 8 | . . . . . . . 3 3 . . . . . . 1 1 . . . . . . . . . . TUNNEL 1 | . . . . . . . . 1 . . . . . . . . . . . . . . . . . . EXPLORE 2 | . . . . . . . . . . . . . . . 1 1 . . . . . . . . . . Ally Attacks 135 | . . . . . . . . 2 . . . 28 . 55 . 21 . . . . 17 . . . . 12 Total Damage 2936 | . . . . . . . . 16 . . . 767 . 1158 . 329 . . . . 433 . . . . 233 Kills 15 | . . . . . . . . . . . . 2 . 8 . 4 . . . . 1 . . . . . Allies Corrupted . | . . . . . . . . . . . . . . . . . . . . . . . . . . . Allies Melted . | . . . . . . . . . . . . . . . . . . . . . . . . . . . Intel | -11 -10 -10 -9 -9 -9 -8 -8 -7 -7 -7 -7 -7 -7 -6 -6 -5 -5 -5 -5 -4 -4 -4 -4 -3 -3 -2 ------- Run | Scr Mat Min Mat Min Exi Min Mat Fac Gar Fac Low Low Dat Pro Fac Fac Upp Upp Zhi Pro Fac Arm Lab Res Tes Res Robot Analysis Total 9 | . . . . . . . 2 . . 1 . . . . 1 . . . 4 . 1 . . . . . Derelict Logs Recovered 8 | . . . . 1 . . . . . . 2 . . 1 . . 1 1 . 2 . . . . . . Drone Launches 2 | . . . . . . . . . . . . . . . 2 . . . . . . . . . . . Drone Recoveries . | . . . . . . . . . . . . . . . . . . . . . . . . . . . Exploration | -11 -10 -10 -9 -9 -9 -8 -8 -7 -7 -7 -7 -7 -7 -6 -6 -5 -5 -5 -5 -4 -4 -4 -4 -3 -3 -2 ------------- Run | Scr Mat Min Mat Min Exi Min Mat Fac Gar Fac Low Low Dat Pro Fac Fac Upp Upp Zhi Pro Fac Arm Lab Res Tes Res Turns Passed 18969 | . 853 167 776 252 1017 694 932 1432 617 1110 880 508 146 610 1162 668 848 270 365 516 1045 1184 448 1848 246 375 Spaces Moved 10377 | 1 506 51 406 157 618 374 400 787 299 584 498 284 90 312 555 345 434 147 171 292 466 568 211 800 442 579 Core 201 | . . . . . . . . . . . . . . . . . . . . . . . . 14 72 115 Treads 3016 | . . . . . . . . . . . . . . . . 317 434 147 104 . 449 568 211 786 . . Legs 6326 | 1 506 51 406 157 618 374 400 787 299 584 498 284 90 312 555 28 . . 67 292 17 . . . . . Wheels . | . . . . . . . . . . . . . . . . . . . . . . . . . . . Hover . | . . . . . . . . . . . . . . . . . . . . . . . . . . . Flight 834 | . . . . . . . . . . . . . . . . . . . . . . . . . 370 464 Fastest Speed 28 | 120 120 150 150 150 150 180 180 150 152 152 152 157 157 152 150 150 160 160 150 150 150 160 160 50 30 28 Average Speed 148 | 120 135 165 150 150 161 180 190 160 152 152 156 157 157 157 163 159 178 178 168 150 159 160 166 158 36 33 Slowest Speed 210 | 120 180 210 150 150 180 180 210 180 152 182 190 157 157 183 180 180 180 180 200 150 180 160 180 160 50 50 Overloaded Moves . | . . . . . . . . . . . . . . . . . . . . . . . . . . . Propulsion Burnouts . | . . . . . . . . . . . . . . . . . . . . . . . . . . . Robots Hopped 2 | . . . . . . . . . . . . . . . . . . . . . . . . . 2 . Cave-ins Triggered 1 | . . . . . . . . . . . . . . 1 . . . . . . . . . . . . Teleports 2 | . . . . . . . . . . . . . . . . . . . . . . 1 . . . 1 Exploration Rate (%) 44 | 2 83 12 40 24 90 74 45 26 58 19 64 53 75 49 19 11 72 32 62 54 17 25 100 17 50 22 Regions Visited 26 Branch Regions 15 Pre-discovered Areas 7 | . . . 1 . . . . 1 . . . . 1 . 1 . . . 3 . . . . . . . Known Exits Taken 6 | . . . . . . . . 1 . 1 . . . . 1 1 . . . . 1 . . . 1 . Unknown Exits Taken 19 | 1 1 1 1 1 1 1 1 . . . 1 1 1 1 . . 1 1 1 1 . 1 1 1 . . Scrap Searched 10 | . . . . . . 1 . . . . 2 1 . 1 . . 2 . . 3 . . . . . . Spaces Dug 129 | . . . . . . . 6 . . . . . . . . 57 . . . . 1 1 2 2 21 39 Terrain Destroyed 582 | . . . . . . . 14 29 . . . . . 49 45 89 5 1 . 8 53 62 2 85 21 119 Melee 60 | . . . . . . . . . . . . . . . . . . . . . . . . . 21 39 Projectile 161 | . . . . . . . . . . . . . . . 4 2 5 1 . 8 17 46 2 76 . . AOE 361 | . . . . . . . 14 29 . . . . . 49 41 87 . . . . 36 16 . 9 . 80 Actions | -11 -10 -10 -9 -9 -9 -8 -8 -7 -7 -7 -7 -7 -7 -6 -6 -5 -5 -5 -5 -4 -4 -4 -4 -3 -3 -2 --------- Run | Scr Mat Min Mat Min Exi Min Mat Fac Gar Fac Low Low Dat Pro Fac Fac Upp Upp Zhi Pro Fac Arm Lab Res Tes Res Total 12690 | . 588 94 520 176 643 384 501 880 395 736 555 307 93 375 710 435 487 152 218 331 706 767 278 1216 474 669 Wait 662 | . 10 13 24 18 . 4 55 13 23 65 1 1 1 11 24 16 25 3 . 8 139 78 . 130 . . Move 10346 | . 505 50 405 156 617 373 399 786 297 583 497 283 89 311 554 344 433 146 170 291 465 567 210 799 437 579 Hop 2 | . . . . . . . . . . . . . . . . . . . . . . . . . 2 . Pick Up 230 | . 6 1 18 1 20 . 3 10 4 30 1 2 . 7 39 6 3 . 5 5 16 24 7 19 1 2 Fast Attach 136 | . 4 4 5 . 1 . . 4 . 4 1 . . 3 4 5 3 . 9 . 9 10 6 38 10 16 Attach 111 | . . 1 2 . . . 2 2 3 7 1 . . 9 8 2 2 . 2 3 8 6 14 32 . 7 Detach 83 | . 1 2 4 . . . . 1 . 4 . . . . 1 3 2 . 6 . 10 4 13 23 . 9 Swap 91 | . 4 2 7 . . 1 6 5 2 2 . . 2 4 12 8 2 2 5 2 4 6 1 14 . . Drop 240 | . 9 . 25 1 5 1 4 14 4 10 1 2 . 3 11 15 6 . 6 3 23 33 8 48 2 6 Fire 619 | . 49 21 30 . . 5 32 31 29 31 17 16 1 27 56 18 11 1 15 19 31 38 19 113 . 9 Melee 63 | . . . . . . . . . . . . . . . . . . . . . . . . . 22 41 Ram . | . . . . . . . . . . . . . . . . . . . . . . . . . . . Kick . | . . . . . . . . . . . . . . . . . . . . . . . . . . . Crush . | . . . . . . . . . . . . . . . . . . . . . . . . . . . Escape Stasis 43 | . . . . . . . . 10 33 . . . . . . . . . . . . . . . . . Rewire 61 | . . . . . . . . 4 . . 36 3 . . . 18 . . . . . . . . . . Trap 2 | . . . . . . . . . . . . . . . . . . . . . 1 1 . . . . Miscellaneous 1 | . . . . . . . . . . . . . . . 1 . . . . . . . . . . . Route ------- -11/Scrapyard -10/Materials (discovered 4 exits: *Mat x2 / [*Min x2]) -10/Mines -9/Materials (discovered 2 exits: *Mat / [*Min]) -9/Mines -9/Exiles -8/Mines (discovered 2 exits: *Mat x2) -8/Materials -7/Factory (discovered 2 exits: *Fac / Gar) -7/Garrison (discovered 2 exits: *Fac x2) -7/Factory (discovered 4 exits: Sto x2 / *Low x2) -7/Lower Caves -7/Lower Caves (discovered 2 exits: *Fac / *Dat) -7/Data Miner -6/Proximity Caves -6/Factory (discovered 2 exits: *Fac / [*Low]) -5/Factory (discovered 2 exits: *Fac / *Upp) -5/Upper Caves -5/Upper Caves -5/Zhirov -4/Proximity Caves -4/Factory -4/Armory -4/Lab -3/Research -3/Testing -2/Research History --------- Turn | Location | Event 1 | -11/Scrapyard | Discovered new exit (range 0) 1 | -11/Scrapyard | Entered Materials 249 | -10/Materials | Discovered new exit (range 16) 301 | -10/Materials | Build established: Mutant 353 | -10/Materials | Discovered new exit (range 12) 428 | -10/Materials | Discovered new exit (range 16) 493 | -10/Materials | Discovered new exit (range 11) 854 | -10/Materials | Entered Mines 906 | -10/Mines | Lost 3 parts (1p1n1w) 964 | -10/Mines | Discovered new exit (range 11) 1021 | -10/Mines | Entered Materials 1021 | -9/Materials | Evolved 2 slots: Propulsion x1, Weapon x1 1297 | -9/Materials | Discovered new exit (range 3) 1309 | -9/Materials | Build established: Scavenger-Gunner 1595 | -9/Materials | Discovered new exit (range 12) 1797 | -9/Materials | Entered Mines 1802 | -9/Mines | Learned Materials trap positions 1827 | -9/Mines | Received a Rocket Launcher from a helpful Derelict 1889 | -9/Mines | Deemed a non-threat by the Exiles lab entrance 1889 | -9/Mines | Discovered new exit (range 5) 2049 | -9/Mines | Entered Exiles 2058 | -9/Exiles | Build established: Gunner 2087 | -9/Exiles | Met 8R-AWN 2112 | -9/Exiles | Met EX-HEX 2183 | -9/Exiles | Met EX-DEC 2209 | -9/Exiles | Visited The Gauntlet 2415 | -9/Exiles | Met EX-BIN 2436 | -9/Exiles | Aligned with FarCom system 2438 | -9/Exiles | Given EX-Vault access code 2472 | -9/Exiles | Opened EX-Vault 2483 | -9/Exiles | Found AWS/Thermal 2515 | -9/Exiles | Warned to stay clear of 0b10 Research branches 2953 | -9/Exiles | Build established: Hauler-Gunner 3044 | -9/Exiles | Discovered new exit (range 14) 3066 | -9/Exiles | Left Exiles lab with AWS/Thermal 3066 | -9/Exiles | Entered Mines 3113 | -8/Mines | Discovered new exit (range 14) 3352 | -8/Mines | Build established: Hauler-Skirmisher 3635 | -8/Mines | Discovered new exit (range 7) 3760 | -8/Mines | Entered Materials 3760 | -8/Materials | Evolved 2 slots: Utility x2 3761 | -8/Materials | Loaded intel: 31 trap records 3963 | -8/Materials | Central database locked down 4688 | -8/Materials | Discovered new exit (range 3) 4692 | -8/Materials | Entered Factory 4692 | -7/Factory | Evolved 2 slots: Propulsion x1, Weapon x1 5090 | -7/Factory | Fabricated T-07 Excavator? 5719 | -7/Factory | Discovered new exit (range 15) 5845 | -7/Factory | Rewired Cogmind 6123 | -7/Factory | Identified exit to Garrison 6124 | -7/Factory | Entered Garrison 6160 | -7/Garrison | Triggered checkpoint 6169 | -7/Garrison | Garrison Relay disabled 6349 | -7/Garrison | Triggered checkpoint 6470 | -7/Garrison | Triggered checkpoint 6538 | -7/Garrison | Discovered new exit (range 15) 6714 | -7/Garrison | Discovered new exit (range 8) 6733 | -7/Garrison | Installed Relay Interface Framework 6741 | -7/Garrison | Entered Factory 6760 | -7/Factory | Identified exit to Storage 6760 | -7/Factory | Identified exit to Lower Caves 7356 | -7/Factory | Lost 4 parts (1p2n1w) 7486 | -7/Factory | Fabricated Imp. Plasma Cutter (x2) 7573 | -7/Factory | Garrison activated, responded to threat 7851 | -7/Factory | Entered Lower Caves 8077 | -7/Lower Caves | Learned 8 Factory zone layouts 8117 | -7/Lower Caves | Encountered a Warlord checkpoint 8150 | -7/Lower Caves | Build established: Hauler-Tank 8257 | -7/Lower Caves | Attracted the attention of an 0b10 checkpoint 8449 | -7/Lower Caves | Attacked by a delusional Derelict stockpiling Unaware 8486 | -7/Lower Caves | Rewired Cogmind 8501 | -7/Lower Caves | Rewired Cogmind 8503 | -7/Lower Caves | Rewired Cogmind 8687 | -7/Lower Caves | Discovered new exit (range 13) 8731 | -7/Lower Caves | Entered another Lower Caves area 8731 | -7/Lower Caves | Accompanied by 3 allies 8733 | -7/Lower Caves | Attracted the attention of an 0b10 checkpoint 8786 | -7/Lower Caves | Attracted the attention of an 0b10 outpost 8890 | -7/Lower Caves | Rewired Cogmind 8965 | -7/Lower Caves | Discovered new exit (range 5) 9188 | -7/Lower Caves | Discovered new exit (range 14) 9239 | -7/Lower Caves | Entered Data Miner 9239 | -7/Data Miner | Accompanied by 3 allies 9239 | -7/Data Miner | Discovered new exit (range 6) 9269 | -7/Data Miner | Met Data Miner 9310 | -7/Data Miner | Learned location of Section 7 (-2) 9310 | -7/Data Miner | Acquired the access code to Warlord's prototype stash 9326 | -7/Data Miner | Received God Mode back door access code from Data Miner 9385 | -7/Data Miner | Entered Proximity Caves 9385 | -6/Proximity Caves | Accompanied by 3 allies 9519 | -6/Proximity Caves | Escorted by Enhanced Grunt 9569 | -6/Proximity Caves | Attracted the attention of an 0b10 checkpoint 9795 | -6/Proximity Caves | Learned Factory garrison access intel 9834 | -6/Proximity Caves | Received a Behemoth hack from an annoying Tinkerer 9868 | -6/Proximity Caves | Spotted B-75 Beast 9879 | -6/Proximity Caves | Discovered new exit (range 15) 9930 | -6/Proximity Caves | Crushed by falling debris 9930 | -6/Proximity Caves | System corruption reached 10% 9930 | -6/Proximity Caves | Destroyed B-75 Beast 9961 | -6/Proximity Caves | Lost 6 parts (1p3n1u1w) 9995 | -6/Proximity Caves | Entered Factory 9995 | -6/Factory | Evolved 2 slots: Utility x2 9996 | -6/Factory | Identified exit to Factory 9997 | -6/Factory | Loaded intel: 4 garrison access locations 10172 | -6/Factory | Incoming investigation squad redirected 10257 | -6/Factory | Lost 4 parts (1p1n1u1w) 10511 | -6/Factory | Build established: Scavenger-Gunner 10872 | -6/Factory | Discovered new exit (range 44) 10951 | -6/Factory | Allied Derelicts emerged from ambush trap array 11045 | -6/Factory | First assault squad dispatched 11060 | -6/Factory | Incoming investigation squad redirected 11072 | -6/Factory | Incoming assault squad redirected 11157 | -6/Factory | Entered another Factory area 11157 | -5/Factory | Accompanied by 4 allies 11157 | -5/Factory | Evolved 2 slots: Utility x2 11158 | -5/Factory | Identified exit to Upper Caves 11220 | -5/Factory | Found Hvy. Insulated Plating 11462 | -5/Factory | Rewired Cogmind 11471 | -5/Factory | Rewired Cogmind 11501 | -5/Factory | Build established: Hauler-Gunner 11825 | -5/Factory | Discovered new exit (range 13) 11825 | -5/Factory | Entered Upper Caves 11981 | -5/Upper Caves | Attracted the attention of an 0b10 checkpoint 12138 | -5/Upper Caves | Encountered a Warlord checkpoint 12490 | -5/Upper Caves | Learned Factory emergency access door positions 12649 | -5/Upper Caves | Discovered new exit (range 7) 12673 | -5/Upper Caves | Entered another Upper Caves area 12853 | -5/Upper Caves | Discovered new exit (range 13) 12943 | -5/Upper Caves | Entered Zhirov 12943 | -5/Zhirov | Discovered new exit (range 3) 13010 | -5/Zhirov | Learned location of Quarantine (-2) 13010 | -5/Zhirov | Learned location of Command (-1) 13075 | -5/Zhirov | Found Alien Artifact 13096 | -5/Zhirov | Found Alien Artifact 13096 | -5/Zhirov | Identified Integrated Reactor 13096 | -5/Zhirov | Installed Integrated Reactor, increased core energy generation (+2%) 13308 | -5/Zhirov | Entered Proximity Caves 13460 | -4/Proximity Caves | Learned Research interactive machine intel 13566 | -4/Proximity Caves | Spotted B-86 Titan 13645 | -4/Proximity Caves | Learned Research trap positions 13794 | -4/Proximity Caves | Discovered new exit (range 9) 13824 | -4/Proximity Caves | Entered Factory 13824 | -4/Factory | Evolved 2 slots: Propulsion x2 13825 | -4/Factory | Identified exit to Armory 13879 | -4/Factory | Build established: Hauler-Tank 14403 | -4/Factory | Fabricated Humpback (x1) 14430 | -4/Factory | Fabricated Humpback (x1) 14539 | -4/Factory | Spotted B-86 Titan 14545 | -4/Factory | Build established: Hauler-Skirmisher 14680 | -4/Factory | Allied Derelicts emerged from ambush trap array 14869 | -4/Factory | Entered Armory 15268 | -4/Armory | Fabricated Lgt. Regenerative Plating? 15395 | -4/Armory | Found Unknown Protection 15395 | -4/Armory | Identified Hvy. Reflective Plating 15437 | -4/Armory | Found Hvy. Reflective Plating 15493 | -4/Armory | Fabricated Tactical Coordination Suite (x1) 15557 | -4/Armory | Fabricated Tactical Coordination Suite? 15694 | -4/Armory | Local fabrication network quarantined 16025 | -4/Armory | Found Fusion Bomb Launcher 16051 | -4/Armory | Identified Transdimensional Reconstructor 16051 | -4/Armory | Warped through subspace to slip node 16051 | -4/Armory | Discovered new exit (range 1) 16053 | -4/Armory | Entered Lab 16053 | -4/Lab | Discovered new exit (range 9) 16074 | -4/Lab | Unable to decrypt terminal 16074 | -4/Lab | Opened the door to a hidden lab 16075 | -4/Lab | Gained access to the hidden lab's interior 16081 | -4/Lab | Unable to decrypt terminal 16091 | -4/Lab | Found Alien Artifact 16091 | -4/Lab | Identified Core Reset Matrix 16091 | -4/Lab | Used Core Reset Matrix 16094 | -4/Lab | Detected by scanners 16095 | -4/Lab | Sensed 3 artifacts in vicinity 16103 | -4/Lab | Confronted by A5 16138 | -4/Lab | Destroyed A5 16145 | -4/Lab | Found Integrated Dissipator 16145 | -4/Lab | Installed Integrated Dissipator, increased core heat dissipation (+2%) 16154 | -4/Lab | Found Core Expander 16154 | -4/Lab | Installed Core Expander, added new Weapon slot 16168 | -4/Lab | Found Transdimensional Reconstructor 16205 | -4/Lab | Found Prototype Protection 16205 | -4/Lab | Identified Hvy. Regenerative Plating 16210 | -4/Lab | Found Prototype Energy Gun 16210 | -4/Lab | Identified Hyp. EM Gauss Rifle 16220 | -4/Lab | Found Hyp. EM Gauss Rifle 16233 | -4/Lab | Found Prototype Hackware 16262 | -4/Lab | Unable to decrypt terminal 16286 | -4/Lab | Found Prototype Special Weapon 16286 | -4/Lab | Identified Gui. Remote Datajack 16321 | -4/Lab | Discovered new exit (range 11) 16501 | -4/Lab | Entered Research 16501 | -3/Research | Evolved 2 slots: Utility x2 16967 | -3/Research | Intercept squad dispatched 16981 | -3/Research | Spotted Tracker 16991 | -3/Research | Spotted Combat Programmer 17010 | -3/Research | Destroyed Combat Programmer 17014 | -3/Research | Destroyed Tracker 17225 | -3/Research | Discovered new exit (range 6) 17642 | -3/Research | Identified Quantum Router 17797 | -3/Research | Found Prototype Processor 17797 | -3/Research | Identified Spectral Analyzer 18039 | -3/Research | Intercept squad dispatched 18047 | -3/Research | Spotted Tracker 18047 | -3/Research | Spotted Tracker 18048 | -3/Research | Spotted Tracker 18053 | -3/Research | Destroyed Tracker 18056 | -3/Research | Destroyed Tracker 18064 | -3/Research | Destroyed Tracker 18120 | -3/Research | Spotted Combat Programmer 18124 | -3/Research | Destroyed Combat Programmer 18125 | -3/Research | Spotted Combat Programmer 18128 | -3/Research | Spotted Combat Programmer 18132 | -3/Research | System corruption reached 10% 18137 | -3/Research | Destroyed Combat Programmer 18149 | -3/Research | Destroyed Combat Programmer 18166 | -3/Research | Lost 3 parts (1n1u1w) 18206 | -3/Research | Intercept squad dispatched 18208 | -3/Research | Spotted Tracker 18209 | -3/Research | Spotted Tracker 18209 | -3/Research | Spotted Tracker 18217 | -3/Research | Destroyed Tracker 18221 | -3/Research | Spotted Combat Programmer 18228 | -3/Research | Destroyed Tracker 18260 | -3/Research | Destroyed Tracker 18265 | -3/Research | System corruption reached 30% 18283 | -3/Research | Spotted Combat Programmer 18330 | -3/Research | Spotted Combat Programmer 18342 | -3/Research | Core integrity fell below 50% 18349 | -3/Research | Entered Testing 18350 | -3/Testing | Maximum security lockdown engaged 18367 | -3/Testing | Lost 20 parts (2p7n5u6w) 18423 | -3/Testing | Found Unknown Piercing Weapon 18423 | -3/Testing | Identified Enh. Force Lance 18428 | -3/Testing | Found Prototype Device 18428 | -3/Testing | Identified Exp. Shield Generator 18591 | -3/Testing | Discovered new exit (range 5) 18593 | -3/Testing | Emitted hypermatrix ping 18594 | -3/Testing | Identified exit to Research 18595 | -3/Testing | Entered Research 18595 | -2/Research | Evolved 2 slots: Power x1, Propulsion x1 18845 | -2/Research | First assault squad dispatched 18855 | -2/Research | Intercept squad dispatched 18875 | -2/Research | Spotted Tracker 18876 | -2/Research | Spotted Tracker 18878 | -2/Research | Warped through subspace 18888 | -2/Research | Destroyed Tracker 18906 | -2/Research | Destroyed Tracker 18926 | -2/Research | Intercept squad dispatched 18931 | -2/Research | Lost 9 parts (1p4n4u) 18937 | -2/Research | Spotted Tracker 18939 | -2/Research | Spotted Tracker 18942 | -2/Research | Spotted Tracker 18947 | -2/Research | Core integrity fell below 50% 18950 | -2/Research | Emitted hypermatrix ping 18953 | -2/Research | Core integrity fell below 20% 18955 | -2/Research | Assembled emerged from beneath the floor 18970 | -2/Research | Destroyed by Tracker with Linked Autogun Last Messages --------------- 18926_ ALERT: Reliable intel has pinpointed LRC-V3, intercept squad en route. 18926_ K-01 Serf cleans the Field Manipulator. 18933_ Identified Rnf. Quantum Reactor. Tracker: "THREAT CONFIRMED. DEPLOY COMBAT PROGRAMMER." 18939_ Impulse Thruster Array destroyed. 18939_ Antigrav System temporarily disabled. Tracker: "THREAT CONFIRMED. DEPLOY COMBAT PROGRAMMER." 18939_ Fusion Bomb Launcher destroyed. 18940_ Slug penetrates Wall. 18940_ Antigrav System destroyed. Tracker: "THREAT CONFIRMED. DEPLOY COMBAT PROGRAMMER." 18947_ Imp. Transmission Jammer destroyed. 18950_ Emitted hypermatrix ping. 18955_ Assembled emerge from beneath the floor. 18955_ Slug penetrates Tracker. 18955_ as-05785 suffers critical hit. 18955_ as-05785 destroyed. 18956_ Slug penetrates Wall. 18966_ Detected hypermatrix ping. Map ----- +----------------------------------------------------+ | | | | | ?????????????????????????????????????????????????? | | ?????????????????????????????????????????????????? | | ?????????????????????????????????????????????????? | | ?????????????????????????????????????????????????? | | ?????????????????????????????????????????????????? | | ?????????????????????????????????????????????????? | | ?????????????????????????????????????????????????? | | ?????????????????????????????????????????????????? | | ?????????????????????????????????????????????????? | | ?????????????????????????????????????????????????? | | ?????????????????????????????????????????????????? | | ??????????????????????????????? ?????????????????? | | ??????????????????????????????# ????????????????? | | ??????????????????????????????# ????????????????? | | ??????????????????????????????? ????????????????? | | ??????????????????????????????? ????????????????? | | ??????????????????????????????? ????????????????? | | ??????????????????????????????? ????????????????? | | ????????????????#########+######+####????????????? | | ????????????????? ###??????????? | | ??????????????????? ???????????? | | ????????????????????? ? ????????? | | ??????????????????????? ??? #????????? | | ?????????????????????####@###### #????????? | | ?????????????????????# ## #????????? | | ?????????????????????# ] ## #????????? | | ?????????????????????# ## #????????? | | ?????????????????????# st #????????# | | ?????????????????????# ## #????????# | | ?????????????????????# ## #?????? # | | ?????????????????????# ## #???? # | | ?????????????????????# ! ## #??""" # | | ?????????????????????# !## # "R # | | ??????????????????############## + """ # | | ??????????????????# = ??# # "" # | | ??????????????????# # #?? # | | ??????????????????# + #???? # | | ??????????????????# # #?????? # | | ??????????????????# ??# #????????# | | ??????????????????##+######+#### ########## | | ?????????????????# | | ?????????????????# | | ?????????????????# | | ?????????????????# | | ?????????????????# ####+################### | | ?????????????????# ??????????????????????????# | | ?????????????????????????????????????????????# | | ?????????????????????????????????????????????# | +----------------------------------------------------+ Best States ------------- Heat Dissipation 131 Energy Generation 41 Energy Capacity 840 Matter Stores 300 Matter Capacity 300 Sight Range 24 Robot Scan Range 20 Terrain Scan Density 10 Jamming Range 12 Power Amplification 30 Armor Coverage 1200 Resistance: KI 30 Resistance: TH 25 Resistance: EM 30 Weapon Shielding 33 Weapon Cycling 15 Phase Shifting 5 Evasion (%) 75 Targeting Accuracy 14 Launcher Accuracy 40 Target Analysis 8 Armor Integrity Analysis 33 Recoil Reduction 6 Matter Filtering 30 Particle Charging 30 Kinecelleration 30 Offensive Hacking 14 Defensive Hacking 14 Item Schematics ----------------- None Robot Schematics ------------------ None Fabricated ------------ T-07 Excavator | x1 | -7/Factory | Preloaded Imp. Plasma Cutter | x2 | -7/Factory | Preloaded Humpback | x1 | -4/Factory Humpback | x1 | -4/Factory Lgt. Regenerative Plating | x1 | -4/Armory Tactical Coordination Suite | x1 | -4/Armory Tactical Coordination Suite | x1 | -4/Armory Alien Tech Used ----------------- Integrated Reactor Transdimensional Reconstructor Core Reset Matrix Integrated Dissipator Core Expander Achievements -------------- Turtlemind Z1$+NX3F=JRE3_ZNQR Challenges ------------ None Game ------ Seed LightHeartMediator Manual? 0 Play Time 05:01:01 Cumulative 224.1 hours Start 2020.04.12 @ 19:43:48 End 2020.04.13 @ 11:54:45 Sessions 7 Manual Loads 0 Difficulty Rogue Special Mode None Game No. 113 Rogue 112 Adventurer 0 Explorer 1 Win Type - Total 13 Types 9/0/4/0/0/0/0 Lore% 77 Gallery% 83 Achievement% 66 Wizard Run 0 Options --------- ASCII 0 Keyboard 1 Movement Numpad Keybinds 0 Fullscreen 2 Font 36/Terminus Map View 76x50 Tactical HUD 1 Map Filters NONE Filters NONE Steam 1 RUN: 410fb1b3-d065-420f-b154-0d4c90962c83